[Event "EICC 2025"]
[Site "Eforie-Nord"]
[Date "2025.03.17"]
[Round "3.25"]
[White "Vijayakumar, Rishi"]
[Black "Donchenko, Alexander"]
[Result "0-1"]
[Annotator "TA"]
[ECO "E68"]
[WhiteElo "2311"]
[BlackElo "2627"]
[PlyCount "74"]
[EventDate "2025.03.14"]
[EventType "swiss"]
[EventCountry "ROU"]
[SourceTitle "playchess.com"]
[Source "ChessBase"]
[SourceQuality "1"]
[TimeControl "40/5400+30:1800+30"]

{[%evp 22,74,35,29,16,0,10,0,0,10,47,46,57,50,101,33,75,13,37,10,10,5,4,0,0,0,48,-7,-4,-17,-21,-404,-418,-418,-414,-437,-271,-323,-292,-232,-230,-583,-537,-522,-497,-851,-719,-829,-811,-1945,-1945,-1606,-1519,-900,-845]} 1. d4 {[%emt 0:00:13]} Nf6 {[%emt 0:00:08]} 2. c4 {[%emt 0:00:11]} g6 {[%emt 0:00:12]} 3. g3 {[%emt 0:01:08]} Bg7 {[%emt 0:00:40]} 4. Bg2 {[%emt 0:00:10]} O-O {[%emt 0:01:37]} 5. Nc3 {[%emt 0:00:09]} d6 {[%emt 0:00:22]} 6. Nf3 {[%emt 0:00:13][%cal Bg1f3,Bf3d4,Bd4b3][%mdl 32]} Nbd7 {[%emt 0:02:10]} 7. O-O {[%emt 0:00:21]} e5 {[%emt 0:00:05]} 8. e4 {[%emt 0:00:11]} Re8 {[%emt 0:00:24]} 9. Re1 {[%emt 0:01:58]} exd4 {[%emt 0:00:46]} 10. Nxd4 {[%emt 0:00:03]} Nc5 {[%emt 0:00:12]} 11. h3 {[%emt 0:08:49]} h6 {[%emt 0:03:57]} 12. Nb3 {[%emt 0:19:46]} Ne6 {[%emt 0:07:48] E68: King's Indian: Fianchetto: 6...Nbd7 7 0-0 e5 8 e4.} 13. f4 {[%emt 0:09:44]} a5 $1 {[%emt 0:06:33]} 14. a4 {[%emt 0:10:54]} Nd7 {[%emt 0:10:33] The position is equal.} 15. Be3 {[%emt 0:02:22]} Ndc5 {[%emt 0:01:37]} 16. Nxc5 $1 {[%emt 0:01:15]} Nxc5 {[%emt 0:00:21]} 17. e5 $1 {[%emt 0:03:22]} Rb8 $146 {[%emt 0:12:50]} ({Black should try} 17... Be6 $14) (17... Ra6 18. Bxc5 dxc5 19. Qxd8 Rxd8 20. Rad1 Rf8 21. Nd5 c6 22. Ne7+ Kh8 23. Nxc8 Rxc8 {1-0 Fridman,D (2571)-Tsolakidou,S (2451) EU-ch Rapid Skopje 2024 (8)}) 18. Nb5 {[%emt 0:05:26]} ({Better is} 18. Bxc5 $1 $16 {[%cal Re5d6]} dxc5 19. Qe2) 18... Bd7 {[%emt 0:06:53]} 19. Ra3 {[%emt 0:11:20]} (19. Bxc5 $1 $16 dxc5 20. Qd2) 19... b6 $11 {[%emt 0:04:08]} 20. Bxc5 {[%emt 0:16:11]} bxc5 {[%emt 0:00:32]} 21. Rd3 {[%emt 0:00:19][%cal Ob5d6]} (21. exd6 Rxe1+ (21... Bxb2 $2 22. dxc7 Bxb5 23. cxd8=R $18) 22. Qxe1 c6 $17 (22... Bxb2 $2 23. dxc7 $18)) 21... Qc8 {[%emt 0:15:51]} 22. Na7 {[%emt 0:01:50]} (22. exd6 Rxe1+ 23. Qxe1 c6 $17) 22... Qa6 {[%emt 0:00:32]} 23. Nb5 {[%emt 0:00:07]} Qb6 {[%emt 0:04:52] [#]} (23... Qc8 $11) 24. Nxd6 {[%emt 0:01:39][%csl Oa5,Oc5,Oc7] Black has weak pawns} Bxa4 $1 {[%emt 0:03:15]} (24... cxd6 $6 25. Rxd6 Bxa4 26. Rxb6 (26. Qxa4 Qxd6 27. exd6 Rxe1+ 28. Kh2 Rxb2 $19) 26... Bxd1 27. Rxb8 Rxb8 28. Rxd1 $16) 25. Qxa4 {[%emt 0:00:02]} cxd6 {[%emt 0:00:07]} 26. Rxd6 $2 {[%emt 0:05:08][%mdl 8192] White does not recover from this.} (26. Bc6 $11 Re6 27. Bd5 (27. Rxd6 Rxd6 28. exd6 Qxb2 $15)) 26... Qxd6 $19 {[%emt 0:04:21]} 27. exd6 {[%emt 0:00:01]} Rxe1+ {[%emt 0:00:06]} 28. Kf2 {[%emt 0:01:06]} Re6 {[%emt 0:03:46]} 29. Bd5 {[%emt 0:00:14] [#]} Bd4+ $1 {[%emt 0:01:24]} (29... Rxb2+ 30. Kf3 Rxd6 31. Qe8+ Kh7 32. Bxf7 (32. Qxf7 Rb3+ 33. Kg2 Rb2+ 34. Kf3 Rb8 $14) 32... Rb3+ 33. Kf2 $11 (33. Ke2 Rb2+ 34. Ke3 Rb3+ 35. Ke2 Rb2+ 36. Ke3 Bd4+ 37. Kd3 Bf6+ 38. Ke3 Bd4+ 39. Kd3 Bf6+ 40. Ke3 Bd4+ $11)) ({Not} 29... Rxd6 30. b3 $17) 30. Kf1 {[%emt 0:00:14]} Rxd6 {[%emt 0:00:20]} 31. Qxa5 $2 {[%emt 0:00:56]} (31. h4 {is a better chance.}) 31... Rxb2 {[%emt 0:00:54] Black is clearly winning.} 32. Qc7 {[%emt 0:00:15]} Rf6 {[%emt 0:00:07]} 33. h4 {[%emt 0:00:45]} (33. Ke1 $142 Kg7 34. Kd1) 33... Kg7 {[%emt 0:02:00]} 34. Qd7 {[%emt 0:00:12]} h5 {[%emt 0:01:00] And now ...Ra6 would win.} 35. Qc7 {[%emt 0:00:40]} Ra6 {[%emt 0:00:50][%cal Ra6a1]} 36. Qxf7+ {[%emt 0:00:39]} Kh6 {[%emt 0:00:02][%cal Ra6a1]} 37. Qf8+ {[%emt 0:00:26]} Bg7 {[%emt 0:00:02] Weighted Error Value: White=1.09/Black=0.28 (precise)   Loses game:     	White=1     	---        Mistake:       	White=5     	Black=2      Inaccurate:     	White=1     	Black=3      OK:         	White=3     	Black=7      Best:        	White=1     	Black=2      Strong:       	White=2     	Black=3} 0-1

[Event "EICC 2025"]
[Site "Eforie-Nord"]
[Date "2025.03.17"]
[Round "3.26"]
[White "Sargsyan, Shant"]
[Black "Klimkowski, Jan"]
[Result "1/2-1/2"]
[Annotator "TA"]
[ECO "A80"]
[WhiteElo "2666"]
[BlackElo "2511"]
[PlyCount "50"]
[EventDate "2025.03.14"]
[EventType "swiss"]
[EventCountry "ROU"]
[SourceTitle "playchess.com"]
[Source "ChessBase"]
[SourceQuality "1"]
[TimeControl "40/5400+30:1800+30"]

{[%evp 9,50,0,0,0,0,-8,0,0,24,0,0,3,0,0,2,0,5,0,0,0,15,9,7,0,0,-15,0,0,0,0,0,0,0,0,0,0,0,0,0,0,0,0,0]} 1. d4 {[%emt 0:01:12]} f5 {[%emt 0:00:32]} 2. Bg5 {[%emt 0:00:59]} g6 {[%emt 0:00:29]} 3. e3 {[%emt 0:01:21]} Bg7 {[%emt 0:00:20]} 4. h4 {[%emt 0:01:18]} h6 {[%emt 0:01:12]} 5. Bf4 {[%emt 0:00:51]} d6 {[%emt 0:03:31]} 6. Bc4 {[%emt 0:02:11] A80: Dutch Defence: Unusual White second moves.} Nf6 {[%emt 0:00:40]} 7. Ne2 $146 {[%emt 0:02:32]} (7. Nc3 e6 8. Qd2 Qe7 9. Nge2 e5 10. Bh2 Be6 11. Bxe6 Qxe6 12. O-O-O Nbd7 13. Kb1 {0-1 Gholami Orimi,M (2470)-Xiong,J (2659) Titled Tuesday intern op 27th Feb Early blitz 2024 (7)}) 7... e6 {[%emt 0:01:23]} 8. Bh2 {[%emt 0:04:33]} Nh5 {[%emt 0:18:00]} 9. Nf4 {[%emt 0:09:39]} Nxf4 {[%emt 0:00:07] The position is equal.} 10. Bxf4 {[%emt 0:00:07]} e5 {[%emt 0:06:47]} 11. dxe5 {[%emt 0:06:22]} dxe5 {[%emt 0:00:08]} 12. Qxd8+ {[%emt 0:00:29]} Kxd8 {[%emt 0:00:05]} 13. Bh2 {[%emt 0:01:09]} Ke7 {[%emt 0:01:19]} 14. Nc3 {[%emt 0:01:21]} c6 {[%emt 0:00:25] Dodges Nd5+} 15. O-O-O {[%emt 0:03:00]} Nd7 {[%emt 0:03:18][%cal Bb8d7,Bd7f6,Bf6g4][%mdl 32]} 16. h5 {[%emt 0:04:52]} g5 {[%emt 0:06:12]} 17. f4 {[%emt 0:00:12][%cal Og2g4]} Nf6 {[%emt 0:27:42]} 18. fxg5 {[%emt 0:06:06]} ({Of course not} 18. fxe5 Ng4 19. e6 Nxh2 (19... Bxe6 20. Bxe6 Kxe6 21. Na4 $17) 20. Rxh2 Be5 $17 (20... Bxe6 21. Bxe6 Kxe6 22. Ne2 $17)) 18... Ng4 {[%emt 0:00:05]} 19. Bg1 {[%emt 0:01:12]} hxg5 {[%emt 0:00:13]} 20. e4 {[%emt 0:00:54] and exf5 would now be decisive} f4 {[%emt 0:03:16]} 21. Bc5+ {[%emt 0:01:49]} Ke8 {[%emt 0:00:04]} 22. Nb5 {[%emt 0:02:42]} cxb5 {[%emt 0:00:04]} 23. Bxb5+ {[%emt 0:00:30]} Kf7 {[%emt 0:00:04]} 24. Bc4+ {[%emt 0:00:00]} Ke8 {[%emt 0:00:30] [#] White must now prevent ...a6.} 25. Bb5+ Kf7 {[%emt 0:00:30] An uneventful encounter.   Weighted Error Value: White=0.04 (flawless) /Black=0.04 (flawless)   OK:         	White=8     	Black=8      Best:        	White=2     	Black=4} 1/2-1/2

[Event "EICC 2025"]
[Site "Eforie-Nord"]
[Date "2025.03.17"]
[Round "3.26"]
[White "Gurel, Ediz"]
[Black "Hulka, Valentyn"]
[Result "1-0"]
[Annotator "TA"]
[ECO "C64"]
[WhiteElo "2620"]
[BlackElo "2312"]
[PlyCount "143"]
[EventDate "2025.03.14"]
[EventType "swiss"]
[EventCountry "ROU"]
[SourceTitle "playchess.com"]
[Source "ChessBase"]
[SourceQuality "1"]
[TimeControl "40/5400+30:1800+30"]

{[%evp 10,143,38,43,55,29,47,9,22,13,18,29,33,39,83,30,58,32,37,43,43,33,46,45,52,60,34,31,47,38,33,33,31,29,29,30,35,14,40,40,36,20,20,0,21,0,27,24,14,12,26,20,133,114,106,107,106,97,100,104,139,135,150,137,166,145,137,47,47,52,55,41,41,59,59,54,73,58,57,47,65,36,89,36,69,36,57,52,53,55,71,55,333,330,310,308,333,325,326,312,307,311,308,306,1068,1098,1084,1084,1044,958,1097,1000,5637,5373,3658,1561,29977,29978,29978,29979,29979,29980,29980,29979,29980,29981,29981,29982,29982,29983,29983,29983,29985,29986,29986,29987]} 1. e4 {[%emt 0:00:03]} e5 {[%emt 0:01:03]} 2. Nf3 {[%emt 0:00:13]} Nc6 {[%emt 0:00:20]} 3. Bb5 {[%emt 0:00:15]} a6 {[%emt 0:00:20]} 4. Ba4 {[%emt 0:00:14]} Bc5 {[%emt 0:00:41]} 5. c3 {[%emt 0:00:58]} Nge7 {[%emt 0:00:10]} 6. O-O {[%emt 0:00:19]} Ba7 {[%emt 0:00:32] C64: Ruy Lopez: Classical Defence (3...Bc5) except 4 0-0 Nf6.} 7. d4 {[%emt 0:00:19]} Ng6 {[%emt 0:00:10]} 8. Bxc6 {[%emt 0:00:44]} dxc6 {[%emt 0:00:08] The position is equal.} 9. Nxe5 {[%emt 0:00:07]} Nxe5 {[%emt 0:00:08]} 10. dxe5 {[%emt 0:00:02]} Qh4 {[%emt 0:00:12] Black sacrificed a pawn} 11. Qf3 {[%emt 0:00:50]} Rg8 {[%emt 0:01:06]} 12. Nd2 {[%emt 0:13:41]} (12. Be3 $16) 12... Be6 {[%emt 0:06:52]} 13. Qd3 $146 {[%emt 0:09:56]} (13. Qg3 Qxg3 14. hxg3 O-O-O 15. Re1 Rd3 16. Nf1 Rgd8 17. Be3 Bxe3 18. Rxe3 Rd1 19. Rxd1 Rxd1 {½-½ Ilamparthi,A (2505)-Cina,V (2361) Wch U20 62nd 2025 (4)}) 13... Qh5 {[%emt 0:13:13]} 14. Nf3 {[%emt 0:02:56]} g5 {[%emt 0:06:23][%cal Bg7g5,Bg5g4][%mdl 32]} 15. Be3 {[%emt 0:02:02]} Bxe3 {[%emt 0:10:15]} 16. Qxe3 {[%emt 0:00:07]} g4 {[%emt 0:00:21]} 17. Nd4 {[%emt 0:06:07]} Qxe5 {[%emt 0:14:20]} 18. Nxe6 {[%emt 0:07:48]} fxe6 {[%emt 0:01:14]} 19. Rad1 {[%emt 0:01:49]} Ke7 $1 {[%emt 0:04:57]} 20. Rd2 {[%emt 0:13:35]} Rad8 {[%emt 0:01:29]} 21. Rfd1 {[%emt 0:00:09]} Rxd2 {[%emt 0:02:08]} 22. Rxd2 $11 {[%emt 0:01:21][%mdl 4096] Endgame KQR-KQR} c5 {[%emt 0:03:08]} 23. Qd3 {[%emt 0:01:41]} Kf6 {[%emt 0:14:29]} 24. g3 {[%emt 0:02:23]} h5 {[%emt 0:00:49]} 25. Qe3 {[%emt 0:08:40]} Ke7 {[%emt 0:00:39]} 26. Qd3 {[%emt 0:04:33]} Qd6 {[%emt 0:00:56]} 27. Qe3 {[%emt 0:00:43]} Qe5 {[%emt 0:00:02]} 28. Kf1 {[%emt 0:01:13]} Rf8 {[%emt 0:02:16]} 29. Rd1 {[%emt 0:01:48]} b5 {[%emt 0:05:02]} 30. Qd2 $36 {[%emt 0:02:23][%mdl 2048] Threatening Qd7+. White is pushing.} Qxe4 {[%emt 0:01:28]} (30... Kf6 $11 {remains equal.}) 31. Qg5+ $16 {[%emt 0:00:08]} Rf6 {[%emt 0:00:23] Threatens to win with ...Qh1+.} 32. Qxc5+ {[%emt 0:00:11]} (32. Qxh5 Qh1+ 33. Ke2 Qf3+ 34. Kd2 Qf5 (34... Qxf2+ 35. Kc1 $11) 35. Qxf5 Rxf5 $17) 32... Ke8 {[%emt 0:00:27]} 33. Qxh5+ {[%emt 0:00:06]} Ke7 {[%emt 0:02:01]} 34. Qc5+ {[%emt 0:00:18]} Ke8 {[%emt 0:00:30]} 35. Kg1 {[%emt 0:00:44] Dancing on a razor blade.} (35. Qxc7 $6 Qh1+ 36. Ke2 Qe4+ 37. Kf1 Qh1+ 38. Ke2 Qe4+ 39. Kf1 $11) 35... Qe2 {[%emt 0:01:27]} 36. Qd4 {[%emt 0:03:34]} Kf7 {[%emt 0:00:10][%cal Of6f5]} (36... Rxf2 37. Qd8+ Kf7 38. Rd7+ Kg6 39. Qe8+ (39. Rxc7 $2 Rf1#) (39. Qg8+ Kf5 $18) 39... Kg5 40. Rg7+ (40. Rxc7 $2 Rf1#) 40... Kf5 41. Rf7+ (41. Rxc7 $2 Rf1#) 41... Ke4 42. Qxe6+ (42. Rxf2 Qe1+ 43. Kg2 Ke5 $18) 42... Kd3 43. Qd5+ (43. Qxa6 $2 Qf1#) 43... Kc2 44. Rxf2 $18) 37. Qd7+ {[%emt 0:00:42]} Kg6 {[%emt 0:00:01]} 38. Qe8+ {[%emt 0:00:43]} (38. Qd3+ $16 Qxd3 39. Rxd3) 38... Kh6 $14 {[%emt 0:00:13]} 39. Qh8+ {[%emt 0:02:17]} Kg6 {[%emt 0:00:01]} 40. Qg8+ {[%emt 0:00:06]} Kh6 {[%emt 0:00:05]} 41. Rf1 {[%emt 0:30:12]} c5 {[%emt 0:35:26]} 42. Qd8 {[%emt 0:07:50]} Kg6 {[%emt 0:01:45]} 43. Qe8+ {[%emt 0:00:05]} Kh6 {[%emt 0:00:49]} 44. Qc6 {[%emt 0:00:45]} (44. b3 c4 45. Qh8+ Kg6 46. bxc4 bxc4 47. Qg8+) 44... Qxb2 {[%emt 0:01:13]} 45. Qxa6 {[%emt 0:00:57]} (45. Qxc5 {feels hotter.} Qe2 46. Qc8 Kg6 47. Qg8+) 45... c4 {[%emt 0:00:34]} (45... Qe2 $1 $14) 46. Qa5 {[%emt 0:04:58]} ({Better is} 46. Qa8 $16) 46... Kg6 {[%emt 0:02:22]} 47. Qb6 {[%emt 0:00:16]} Qxc3 {[%emt 0:00:00]} 48. Qxb5 {[%emt 0:00:00]} Qd4 $1 {[%emt 0:00:00]} 49. a4 {[%emt 0:00:00][%cal Ba2a4,Ba4a5,Ba5a6][%mdl 32]} c3 {[%emt 0:00:00]} 50. a5 {[%emt 0:00:00]} c2 $2 {[%emt 0:00:00][%mdl 8192] [#] This costs Black the game.} (50... Qe4 $14) 51. Qe2 $1 $18 {[%emt 0:00:00]} Qb2 {[%emt 0:00:00]} 52. Qxg4+ {[%emt 0:00:00]} Kf7 {[%emt 0:00:00] [#]} 53. Qh5+ $1 {[%emt 0:00:00]} (53. Qc4 Kg7 $16) 53... Rg6 {[%emt 0:00:00]} 54. Qc5 {[%emt 0:00:00]} Rg4 {[%emt 0:00:00]} 55. a6 {[%emt 0:00:00] Strongly threatening Qc7+.} Ra4 {[%emt 0:00:00][%cal Oa4a1]} 56. a7 {[%emt 0:00:00]} ({Not} 56. Qc7+ Kg6 $16) 56... Ra1 $2 {[%emt 0:00:00]} (56... Qb1 57. Qc7+ Kg6) 57. Rxa1 {[%emt 0:00:00]} Qxa1+ {[%emt 0:00:00] KQ-KQ. White is two pawns up.} 58. Kg2 {[%emt 0:00:00]} c1=Q {[%emt 0:00:00]} 59. Qxc1 {[%emt 0:00:00]} Qxa7 {[%emt 0:00:00]} 60. Qf4+ {[%emt 0:00:00]} Kg6 {[%emt 0:00:00]} 61. Qe4+ {[%emt 0:00:00]} Kf6 {[%emt 0:00:00]} 62. h4 {[%emt 0:00:00] White threatens h5 and mate.} Qc5 {[%emt 0:00:00]} 63. Qf4+ {[%emt 0:00:00] White mates.} Kg6 {[%emt 0:00:00] [#]} 64. Qg5+ $1 {[%emt 0:00:00]} Qxg5 {[%emt 0:00:00]} 65. hxg5 {[%emt 0:00:00]} Kxg5 {[%emt 0:00:00] KPP-KP. White is a pawn up.} 66. f3 {[%emt 0:00:00]} Kf5 {[%emt 0:00:00]} 67. Kf2 {[%emt 0:00:00]} Ke5 {[%emt 0:00:00]} 68. Ke3 {[%emt 0:00:00]} Kf5 {[%emt 0:00:00]} 69. Kd4 {[%emt 0:00:00]} Kf6 {[%emt 0:00:00]} 70. Ke4 {[%emt 0:00:00]} e5 {[%emt 0:00:00]} 71. g4 {[%emt 0:00:00][%cal Bg3g4,Bg4g5][%mdl 32]} Ke6 {[%emt 0:00:00]} 72. g5 {[%emt 0:00:00] Weighted Error Value: White=0.11 (very precise) /Black=0.36  Loses game:     	---       	Black=1      Mistake:       	White=3     	Black=3      Inaccurate:     	White=4     	Black=5      OK:         	White=21    	Black=11     Best:        	White=3     	Black=7      Strong:       	White=2     	Black=2} 1-0

[Event "EICC 2025"]
[Site "Eforie-Nord"]
[Date "2025.03.17"]
[Round "3.27"]
[White "Wojtaszek, Radoslaw"]
[Black "Sahidi, Samir"]
[Result "1-0"]
[Annotator "TA"]
[ECO "D61"]
[WhiteElo "2659"]
[BlackElo "2500"]
[PlyCount "109"]
[EventDate "2025.03.14"]
[EventType "swiss"]
[EventCountry "ROU"]
[SourceTitle "playchess.com"]
[Source "ChessBase"]
[SourceQuality "1"]
[TimeControl "40/5400+30:1800+30"]

{[%evp 17,109,20,18,22,24,25,30,29,39,17,83,60,94,87,103,83,94,86,85,84,93,82,70,53,75,81,65,85,68,52,127,79,128,118,133,126,231,216,262,251,242,248,237,82,212,179,205,153,165,115,126,104,110,97,126,133,127,135,129,133,150,112,112,113,116,116,280,279,277,268,239,214,281,279,290,176,344,337,689,664,564,637,689,683,612,505,565,548,1071,906,5018,3353,5014,4727]} 1. d4 {[%emt 0:00:03]} Nf6 {[%emt 0:00:13]} 2. c4 {[%emt 0:00:04]} e6 {[%emt 0:00:11]} 3. Nf3 {[%emt 0:00:05]} d5 {[%emt 0:00:13]} 4. Nc3 {[%emt 0:00:07]} c6 {[%emt 0:01:54]} 5. Bg5 {[%emt 0:00:09]} h6 {[%emt 0:00:39]} 6. Bh4 {[%emt 0:00:10]} Nbd7 {[%emt 0:03:48]} 7. e3 {[%emt 0:01:47]} Be7 {[%emt 0:01:17]} 8. Qc2 {[%emt 0:00:11]} O-O {[%emt 0:01:12]} 9. a3 {[%emt 0:00:17]} b6 {[%emt 0:02:17]} 10. cxd5 {[%emt 0:00:43] D61: Queen's Gambit Declined: Classical: 7 Qc2.} exd5 {[%emt 0:02:06]} 11. Bd3 {[%emt 0:02:28]} Bb7 {[%emt 0:01:19]} 12. O-O {[%emt 0:00:13] White has an edge.} c5 {[%emt 0:04:11]} 13. Rad1 $5 {[%emt 0:13:54][%mdl 4] Exploring less charted territory.} Re8 {[%emt 0:03:26]} (13... Ne8 $11 14. Bg3 c4) 14. Bf5 {[%emt 0:12:04]} c4 {[%emt 0:07:34]} 15. Ne5 {[%emt 0:01:40]} Nf8 {[%emt 0:00:51]} 16. f4 {[%emt 0:01:58][%csl Oe5] Strong Square White (e5)} a6 {[%emt 0:03:52]} 17. g4 $146 {[%emt 0:14:33] White is much more active.} (17. Rf3 b5 18. Rg3 Qb6 19. Qe2 Rad8 20. Bxf6 Qxf6 21. Qh5 Rd6 22. Bc2 Bc8 23. Rf1 {1-0 Martirosyan,H (2678)-Dragicevic,D (2322) EU-ch Rapid Zagreb 2023 (2)}) 17... N6d7 {[%emt 0:12:42]} 18. Bxe7 {[%emt 0:08:53]} Qxe7 {[%emt 0:03:02]} 19. Qg2 {[%emt 0:02:47]} Rad8 {[%emt 0:00:55]} 20. Qg3 {[%emt 0:04:14]} (20. Nxd5 $2 Bxd5 21. Qg3 (21. Qxd5 $2 Nxe5 22. Qg2 Nd3 $19) 21... b5 $19) 20... b5 {[%emt 0:02:10]} 21. h4 {[%emt 0:00:23]} f6 {[%emt 0:13:27]} 22. Nxd7 {[%emt 0:01:14]} Nxd7 {[%emt 0:00:06]} 23. Rde1 {[%emt 0:00:20]} Qd6 {[%emt 0:05:23]} (23... Nf8 $14) 24. Re2 {[%emt 0:10:32]} (24. g5 $142) 24... Nf8 {[%emt 0:05:57]} ({Better is} 24... Re7) 25. g5 $16 {[%emt 0:02:25]} fxg5 {[%emt 0:01:56]} 26. hxg5 {[%emt 0:00:04]} h5 {[%emt 0:02:36]} (26... hxg5 $16 27. Rg2 (27. Qxg5 Qe7 $16) 27... Qf6) 27. Qh4 $18 {[%emt 0:03:29]} g6 {[%emt 0:02:33]} 28. Bc2 {[%emt 0:00:02]} Rd7 {[%emt 0:08:58]} 29. f5 {[%emt 0:00:46]} Rf7 {[%emt 0:00:12]} 30. f6 {[%emt 0:03:32]} (30. Ref2 $1 $18 {is more deadly.}) 30... Bc6 {[%emt 0:02:55]} (30... Bc8 $16 {keeps fighting.}) 31. Rf3 {[%emt 0:02:40][%cal Oc2g6]} Rh7 {[%emt 0:02:37]} 32. Rd2 {[%emt 0:05:49]} Qe6 {[%emt 0:01:33] [#]} 33. e4 $1 {[%emt 0:02:16][%mdl 512]} Qg4+ $16 {[%emt 0:01:40]} 34. Qxg4 {[%emt 0:00:08]} hxg4 {[%emt 0:00:05]} 35. Rf4 {[%emt 0:01:50][%cal Bf3f4,Bf4g4,Bg4g3][%mdl 32]} dxe4 {[%emt 0:00:23]} 36. Bxe4 {[%emt 0:01:51]} Bxe4 {[%emt 0:02:52]} 37. Nxe4 {[%emt 0:00:21]} Rd8 {[%emt 0:00:23]} 38. Rxg4 {[%emt 0:02:54]} Rh3 {[%emt 0:00:52]} 39. d5 {[%emt 0:01:11]} Rd3 {[%emt 0:01:04]} 40. Rxd3 {[%emt 0:01:19]} cxd3 {[%emt 0:00:06][%mdl 4096] Endgame KRN-KRN. White is a pawn up.} 41. d6 {[%emt 0:02:31]} Nd7 $2 {[%emt 0:04:24]} (41... d2 $16 42. Nxd2 Rxd6) 42. Kf2 $18 {[%emt 0:06:18]} Ne5 {[%emt 0:02:10] [#]} 43. Rg3 {[%emt 0:00:43]} (43. Rh4 $6 Nc4 $16) 43... Kf7 {[%emt 0:02:38]} 44. Ke3 {[%emt 0:00:30]} Ke6 {[%emt 0:01:14]} 45. Nc5+ {[%emt 0:02:20]} Kf5 {[%emt 0:10:10]} 46. Nxd3 {[%emt 0:00:14]} (46. Nxa6 $2 d2 (46... Rxd6 47. f7 $17) 47. Rg1 Rxd6 $19) 46... Nf7 {[%emt 0:00:57]} (46... Nc4+ 47. Kf2 Nxd6 48. Rf3+ Kxg5) 47. Rf3+ {[%emt 0:02:34]} Kxg5 $2 {[%emt 0:00:41]} (47... Ke6 48. Kf4 (48. Nc5+ Kd5 $11) 48... Rc8 49. Re3+ Kxd6) 48. Nc5 {[%emt 0:00:03] Ne6+ would kill now. White is clearly winning.} Kh5 {[%emt 0:04:33]} 49. d7 {[%emt 0:01:18]} (49. Nxa6 g5 $16) 49... g5 {[%emt 0:00:32][%cal Bg6g5,Bg5g4][%mdl 32]} 50. Ke4 {[%emt 0:00:17]} (50. Nxa6 Rxd7 51. Rf1 Kg6 $14) 50... g4 {[%emt 0:00:26]} 51. Rd3 {[%emt 0:00:38]} Rg8 {[%emt 0:01:30]} 52. Kf4 {[%emt 0:05:21]} ({Not} 52. Nxa6 g3 $18) 52... Kh4 {[%emt 0:04:59]} 53. Ne4 {[%emt 0:00:24]} ({And not} 53. Nxa6 g3 54. d8=B Nxd8 $11) 53... a5 {[%emt 0:01:26]} 54. Rd1 {[%emt 0:01:13][%cal Rd1h1]} Kh5 {[%emt 0:01:42]} 55. Kf5 {[%emt 0:00:05] Weighted Error Value: White=0.24 (precise) /Black=0.69  Loses game:     	---       	Black=1      Mistake:       	White=3     	Black=7      Inaccurate:     	White=1     	Black=4      OK:         	White=15    	Black=10     Best:        	White=6     	---} 1-0